{"text_format":"1","workbook":"xlsx","n_sheets":6,"sheets":["Tableau_de_bord","Affichage","Emargement","Activation des macros","Lisez-moi","Plan vierge de la salle"],"not_rendered":{"charts":0,"images":38,"macros":1,"external_links":1,"defined_names":22,"comments":0,"pivot_tables":0},"unopened":[],"bounds":{"document_bytes":16777216,"sheet_cells":100000,"rows_first":2000,"rows_last":500,"rows_between":2000,"halvings":0,"cell_chars":16384,"cell_head_chars":4096},"cells_cut":0,"cells_raw":0,"read":"whole","date_system":"1900"}

{"sheet":"Tableau_de_bord","index":0,"n_rows":288,"n_cols":27,"rows_kept":288,"cut":false,"hidden":false,"merged":[]}
[null,"Nom","Prénom","Groupe\n(TP ou TD)","N° Place",null,null,"Application RED : Tableau de bord",null,"Places des différents groupes",null,null,null,null,null,null,null,"Save"]
[1,"ABLIN","Hugo","J1",60,null,null,"RED : Répartition des Etudiants aux Devoirs",null,"A","B","C","D","E","SG",null,"SG","A","B","C","D","E"]
[2,"ALLAIS","Tanguy","N2",142,null,null,null,null,"Numero","Numero","Numero","Numero","Numero","Numéro",null,"Numéro","Numero","Numero","Numero","Numero","Numero"]
[3,"ALLARD","Baptiste","L2",105,null,null,null,null,60,12,105,142,118,128,null,32,150,115,19,20,118]
[4,"ANGIBAUD","Armand","L1",51,null,null,null,null,145,123,51,85,10,37,null,140,17,18,94,41,48]
[5,"AUBRY","Marius","J2",145,null,null,null,null,37,134,4,95,70,85,null,104,114,12,16,80,96]
[6,"BA","Ady","N2",85,null,null,null,null,119,8,84,148,96,8,null,20,77,123,4,95,154]
[7,"BELHOMME","Louen","L2",4,null,null,null,null,49,138,16,41,81,137,null,150,32,8,135,25,132]
[8,"BESNARD","Achille","K1",12,null,null,null,null,22,140,45,69,86,138,null,4,59,61,90,107,75]
[9,"BOISNEAU","Elisa","J1",37,null,"Étape 1","Informations à compléter","           ",109,83,62,30,6,88,null,134,49,88,51,35,21,null,"Effectifs par groupe"]
[10,"BOIZARD","Maxime","J2",119,null,null,null,null,11,72,111,107,15,59,null,95,145,146,24,47,42]
[11,"BONHOMME","Aymeric","N1",95,null,null,null,null,87,78,27,14,130,66,null,155,43,138,56,52,155,null,{"$f":"IF(Z12<>\"\",Z12&\"1\",\"\")","v":"J1"},{"$f":"IF(X12<>\"\",COUNTIF(Zone_Groupes,X12),\"\")","v":13},{"$f":"IF(H24<>\"\",H24,\"\")","v":"J"},"Maxi"]
[12,"BOSSARD","Canelle","K1",123,null,"Département :","GCCD",null,77,50,40,112,75,109,null,52,11,140,40,142,108,null,{"$f":"IF(Z12<>\"\",Z12&\"2\",\"\")","v":"J2"},{"$f":"IF(X13<>\"\",COUNTIF(Zone_Groupes,X13),\"\")","v":12},{"$f":"IF(Z12<>\"\",COUNTIF(Zone_Groupes,X12)+ COUNTIF(Zone_Groupes,X13)+COUNTIF(Zone_Groupes,Z12),0)","v":25},28]
[13,"BOUCHERIE","Marion","L2",84,null,null,null,null,82,99,67,5,26,152,null,90,119,23,129,117,36]
[14,"BRIENT","Mathis","J2",49,null,"Semestre :","S1",null,65,44,19,91,31,17,null,11,22,50,45,101,58,null,{"$f":"IF(Z15<>\"\",Z15&\"1\",\"\")","v":"K1"},{"$f":"IF(X15<>\"\",COUNTIF(Zone_Groupes,X15),\"\")","v":13},{"$f":"IF(H25<>\"\",H25,\"\")","v":"K"},"Maxi"]
[15,"BRISARD","Alexandre","K2",134,null,null,null,null,133,110,135,80,102,53,null,107,87,78,141,136,10,null,{"$f":"IF(Z15<>\"\",Z15&\"2\",\"\")","v":"K2"},{"$f":"IF(X16<>\"\",COUNTIF(Zone_Groupes,X16),\"\")","v":14},{"$f":"IF(Z15<>\"\",COUNTIF(Zone_Groupes,X15)+ COUNTIF(Zone_Groupes,X16)+COUNTIF(Zone_Groupes,Z15),0)","v":27},28]
[16,"CHANNAROND","Théo","N2",148,null,"Formation :","BUT1",null,54,66,147,117,149,154,null,53,103,104,62,9,6]
[17,"CHARPENTIER","Romain","K2",8,null,null,null,null,103,88,90,9,42,18,null,66,60,39,73,14,70,null,{"$f":"IF(Z18<>\"\",Z18&\"1\",\"\")","v":"L1"},{"$f":"IF(X18<>\"\",COUNTIF(Zone_Groupes,X18),\"\")","v":12},{"$f":"IF(H26<>\"\",H26,\"\")","v":"L"},"Maxi"]
[18,"CHESNEAU","Angélina","N1",41,null,"Épreuve :","Mathématiques",null,32,115,34,57,155,41,null,108,71,128,147,57,102,null,{"$f":"IF(Z18<>\"\",Z18&\"2\",\"\")","v":"L2"},{"$f":"IF(X19<>\"\",COUNTIF(Zone_Groupes,X19),\"\")","v":8},{"$f":"IF(Z18<>\"\",COUNTIF(Zone_Groupes,X18)+ COUNTIF(Zone_Groupes,X19)+COUNTIF(Zone_Groupes,Z18),0)","v":20},28]
[19,"CIVEL","Lucas","K1",138,null,null,null,null,139,146,94,153,48,113,null,62,133,72,152,131,130]
[20,"CLENET","Valentin","J1",22,null,"Date :","2022-06-17","JJ/MM/AAAA",7,3,79,63,132,20,null,58,92,83,34,112,53,null,{"$f":"IF(Z21<>\"\",Z21&\"1\",\"\")","v":"N1"},{"$f":"IF(X21<>\"\",COUNTIF(Zone_Groupes,X21),\"\")","v":10},{"$f":"IF(H27<>\"\",H27,\"\")","v":"N"},"Maxi"]
[21,"CLERC","Théo","L1",16,null,null,null,null,17,128,116,74,36,125,null,72,122,110,79,85,64,null,{"$f":"IF(Z21<>\"\",Z21&\"2\",\"\")","v":"N2"},{"$f":"IF(X22<>\"\",COUNTIF(Zone_Groupes,X22),\"\")","v":11},{"$f":"IF(Z21<>\"\",COUNTIF(Zone_Groupes,X21)+ COUNTIF(Zone_Groupes,X22)+COUNTIF(Zone_Groupes,Z21),0)","v":21},28]
[22,"COCHET","Ewen","J2",109,null,"Noms des groupes :","Entrer le nom des groupes de TD (A, B, J, M, etc.)",null,97,33,141,25,154,115,null,147,139,134,89,5,31]
[23,"CORGNIARD","Ewen","K2",140,null,null,"J","Répartition en Zone A",71,18,56,101,137,111,null,39,7,33,84,69,81,null,{"$f":"IF(Z24<>\"\",Z24&\"1\",\"\")","v":""},{"$f":"IF(X24<>\"\",COUNTIF(Zone_Groupes,X24),\"\")","v":""},{"$f":"IF(H28<>\"\",H28,\"\")","v":""},"Maxi"]
[24,"DANG XUAN","Antoine","K2",83,null,null,"K","Répartition en Zone B",114,61,129,52,58,63,null,113,109,55,100,63,26,null,{"$f":"IF(Z24<>\"\",Z24&\"2\",\"\")","v":""},{"$f":"IF(X25<>\"\",COUNTIF(Zone_Groupes,X25),\"\")","v":""},{"$f":"IF(Z24<>\"\",COUNTIF(Zone_Groupes,X24)+ COUNTIF(Zone_Groupes,X25)+COUNTIF(Zone_Groupes,Z24),0)","v":0},28]
[25,"DELMAS","Ophélie","L1",45,null,"5 groupes au maximum","L","Répartition en Zone C",122,23,89,47,21,110,null,74,127,44,13,30,113]
[26,"DUGUAY","Maréva","J1",11,null,null,"N","Répartition en Zone D",150,151,73,136,64,33,null,99,54,99,116,91,137,null,null,"Total :",{"$f":"SUM(Z12:Z25)","v":93},"/140"]
[27,"DUWATTEZ","Maëlle","J1",87,null,null,null,"Répartition en Zone E",127,93,152,20,113,127,null,79,65,93,111,148,126]
[28,"FILY--KELLER","Niels","K1",72,null,null,null,null,43,39,100,125,53,67,null,116,97,66,105,153,15]
[29,"FOUILLEUL","Emmy","L1",62,null,null,null,null,59,55,24,35,108,42,null,105,37,151,67,74,86]
[30,"GARNIER","Valentin","J2",77,null,"Étape 2","Compléter les colonnes B, C et D",null,92,104,13,131,126,13,null,136,82,3,27,125,149]
[31,"GOUARD","Guillaume","N2",69,null,null,null,null,null,null,null,null,null,114,null,7]
[32,"GOUBAUD","Giovanni","K2",78,null,null,null,null,null,null,null,null,null,15,null,97]
[33,"GUEDAOURIA","Ilias","K2",50,null,null,null,null,null,null,null,null,null,72,null,57]
[34,"GUILLON","Enzo","N2",30,null,null,null,null,null,null,null,null,null,103,null,118]
[35,"GUINOISEAU","Théo","L2",111,null,null,null,null,null,null,null,null,null,21,null,82]
[36,"HABAMENSHI","Lambert","L1",27,null,null,null,null,null,null,null,null,null,108,null,73]
[37,"HAMEL","Jean-Guillaume","K2",99,null,null,null,null,null,null,null,null,null,65,null,71]
[38,"HAMON","Margaux","L1",40,null,null,null,null,null,null,null,null,null,60,null,149,"X"]
[39,"HENAFF","Romain","K2",44,null,null,null,null,null,null,null,null,null,86,null,92]
[40,"HERAULT","Louison","N1",107,null,null,null,null,null,null,null,null,null,45,null,35]
[41,"HERVOUET","Pierre","K1",110,null,null,null,null,null,null,null,null,null,92,null,60]
[42,"HIRON","Cloé","J1",82,null,null,null,null,null,null,null,null,null,95,null,37]
[43,"HUNAULT","Louis","J2",65,null,null,null,null,null,null,null,null,null,57,null,47]
[44,"ISVELIN","Niels","K2",66,null,null,null,null,null,null,null,null,null,75,null,17]
[45,"JOVANOVIC","Andrija","K1",88,null,null,null,null,null,null,null,null,null,141,null,51]
[46,"LAUDREN","Paulin","N2",14,null,null,null,null,null,null,null,null,null,47,null,112]
[47,"LE BORGNE","Titouan","L2",67,null,null,null,null,null,null,null,null,null,9,null,14]
[48,"LE CALLET","Gwenaëlle","N1",112,null,"Étape 2-Bis","Options disponibles dans le cas d'un effectif réduit (70 étudiants au plus)",null,null,"Zone-Gauche","Zone-Droite","Zone-Haute","Zone-Basse",55,"Zone alternée",130,"Zone alternée","Zone-Gauche","Zone-Droite","Zone-Haute","Zone-Basse"]
[49,"LE GALL","Simon","J1",133,null,null,null,null,null,108,6,103,45,54,70,137,122,122,73,3,16]
[50,"LE GLOANNEC","Brendan","K1",115,null,null,null,null,null,123,50,14,49,14,135,110,123,123,74,4,17]
[51,"LE GOUDIVEZE","Jean","N1",5,null,null,null,null,null,101,42,91,26,43,146,23,125,125,75,5,18]
[52,"LE GUILLY","Mathilde","L1",19,null,null,null,null,null,92,58,40,154,4,151,88,126,126,77,6,19]
[53,"LE JEUNE","Titouan","N1",91,null,null,null,null,null,62,40,30,87,96,138,139,127,127,78,7,20]
[54,"LE LURON","Sacha","N1",80,null,null,null,null,null,147,57,13,138,155,62,55,128,128,79,8,21]
[55,"LE NORMAND","Amandine","J1",54,null,null,null,null,null,139,77,128,27,116,9,111,129,129,80,9,22]
[56,"LE SAUX","Jocelyn","N1",117,null,null,null,null,null,94,5,70,52,119,22,93,130,130,81,10,23]
[57,"LEBLANC","Dylan","L1",135,null,null,null,null,null,125,30,90,58,40,129,27,131,131,82,11,24]
[58,"LEMÉE","Kévin","K1",146,null,null,null,null,null,116,48,94,80,142,88,15,132,132,83,12,25]
[59,"LEVEL","Thalys","N2",9,null,null,null,null,null,133,39,127,108,133,148,3,133,133,84,13,26]
[60,"LIARD","Mathéo","L1",147,null,null,null,null,null,145,75,66,105,51,140,83,134,134,85,14,27]
[61,"LIVET","Anaïs","L1",90,null,null,null,null,null,119,31,135,86,52,153,89,135,135,86,15,45]
[62,"LOIRAT","Pauline","K2",3,null,null,null,null,null,148,4,36,151,39,155,69,136,136,87,30,47]
[63,"LUCAS","Hugo","J2",103,null,null,null,null,null,69,7,15,50,118,6,85,137,137,88,31,48]
[64,"MACE","Charly","J2",32,null,null,null,null,null,72,47,123,146,99,3,138,138,138,89,32,49]
[65,"MAGNIER","Paul","J1",139,null,null,null,null,null,134,55,99,88,22,71,42,139,139,30,33,50]
[66,"MAHÉ","Félicie","K1",128,null,null,null,null,null,66,54,134,19,58,128,132,140,140,31,34,51]
[67,"MALMOUCHE","Maëlle","K2",33,null,null,null,null,null,130,33,101,47,151,73,127,141,141,32,35,52]
[68,"MARICHAL","Natnaël","L1",34,null,"Étape 3","Lancer l'application RED",null,null,96,21,61,22,149,136,141,142,142,33,36,53]
[69,"MARY","Pierre","K1",18,null,null,null,null,null,131,43,96,82,101,8,146,145,145,34,37,54]
[70,"MASSE","Louis","J1",7,null,null,null,null,null,146,13,129,152,71,132,44,146,146,35,39,55]
[71,"MENON","Hugo","J2",17,null,null,null,null,null,127,37,41,24,145,125,135,147,147,36,40,56]
[72,"MEREL","Bastien","K2",61,null,null,null,null,null,100,59,35,78,56,86,115,148,148,37,41,57]
[73,"MICHINOT","Matthieu","L2",94,null,null,null,null,null,110,16,64,111,16,60,145,149,149,39,42,58]
[74,"MONGAULT","Lucie","L1",79,null,null,null,null,null,122,3,4,116,123,15,5,150,150,40,43,59]
[75,"NOEL","Lilian","J2",97,null,null,null,null,null,99,24,62,16,73,66,80,151,151,41,44,75]
[76,"ORAIN","Sylvain","N2",57,null,null,null,null,null,152,49,11,55,24,65,13,152,152,42,60,77]
[77,"OREGGIA","Florian","K1",23,null,null,null,null,null,126,52,31,112,81,67,9,153,153,43,61,78]
[78,"OUISSE","Lucas","N1",153,null,"Étape 4","Aperçu & Impression des résultats",null,null,63,36,133,85,5,130,128,154,154,44,62,79]
[79,"PAROIS","Romain","J1",71,null,null,null,null,null,71,10,43,140,93,131,117,60,90,45,63,80]
[80,"PÉCHEREAU","Marguerite","K1",151,null,null,null,null,null,140,155,7,148,122,72,114,61,91,47,64,81]
[81,"PICAULT","Alexandre","N1",63,null,null,null,null,null,95,78,130,141,104,7,22,62,92,48,65,82]
[82,"PINEAU","Gatien","J2",114,null,null,null,null,null,151,11,8,18,97,82,84,63,93,49,66,83]
[83,"PLESSY","Armand","J1",122,null,null,null,null,null,115,44,93,23,3,63,94,64,94,50,67,84]
[84,"RAKOTONDRAZAKA","Henintsoa","K2",93,null,"Imprimer Affichage",null,null,null,90,12,39,59,148,142,8,65,95,51,69,85]
[85,"RESPONDEK","Alexis","L2",116,null,null,null,null,null,132,26,74,107,12,61,64,66,96,52,70,86]
[86,"SCHUTZ","Malo","N2",74,null,"Imprimer Émargement",null,null,null,93,81,12,153,48,126,26,67,97,53,71,87]
[87,"SÉROT","Lucas","K2",39,null,null,null,null,null,129,84,132,142,30,24,125,69,99,54,72,88]
[88,"SI AHMED","Lounes","N2",25,null,null,null,null,null,142,79,69,25,129,23,16,70,100,55,73,89]
[89,"TARAVELLA","Mathieu","K1",55,null,null,null,null,null,138,83,60,81,31,25,154,71,101,56,74,105]
[90,"THEAUD","Noé","J2",150,null,null,null,null,null,104,18,97,117,25,74,100,72,102,57,90,107]
[91,"THOMAS","Hugo","J1",127,null,null,null,null,null,114,22,100,109,94,14,6,73,103,58,91,108]
[92,"VIEAU","Nathan","L2",141,null,null,null,null,null,112,20,102,79,146,145,45,74,104,59,92,109]
[93,"VILAIN","Zoé","N2",101,null,null,null,null,null,136,45,3,53,132,16,56,75,105,3,93,110]
[94,null,null,null,null,null,null,null,null,null,113,51,95,17,105,26,18,77,107,4,94,111]
[95,null,null,null,null,null,null,null,null,null,135,32,136,48,50,154,21,78,108,5,95,112]
[96,null,null,null,null,null,null,null,null,null,128,73,5,149,131,18,153,79,109,6,96,113]
[97,null,null,null,null,null,null,null,null,null,118,86,65,114,49,75,54,80,110,7,97,114]
[98,null,null,null,null,null,null,null,null,null,91,35,92,84,79,150,91,81,111,8,99,115]
[99,null,null,null,null,null,null,null,null,null,150,34,33,75,102,13,129,82,112,9,100,116]
[100,null,null,null,null,null,null,null,null,null,97,53,73,139,78,12,123,83,113,10,101,117]
[101,null,null,null,null,null,null,null,null,null,107,17,9,57,34,137,41,84,114,11,102,118]
[102,null,null,null,null,null,null,null,null,null,117,19,63,119,84,139,70,85,115,12,103,119]
[103,null,null,null,null,null,null,null,null,null,61,85,32,83,11,4,19,86,116,13,104,138]
[104,null,null,null,null,null,null,null,null,null,70,80,137,54,89,83,133,87,117,14,122,139]
[105,null,null,null,null,null,null,null,null,null,109,8,126,155,91,17,24,88,118,15,123,140]
[106,null,null,null,null,null,null,null,null,null,153,56,42,21,61,87,119,89,119,16,125,141]
[107,null,null,null,null,null,null,null,null,null,111,27,37,113,130,5,48,3,60,17,126,142]
[108,null,null,null,null,null,null,null,null,null,141,14,34,20,134,127,12,4,61,18,127,145]
[109,null,null,null,null,null,null,null,null,null,105,9,6,56,23,81,63,5,62,19,128,146]
[110,null,null,null,null,null,null,null,null,null,154,89,131,110,80,69,103,6,63,20,129,147]
[111,null,null,null,null,null,null,null,null,null,149,41,125,145,44,78,33,7,64,21,130,148]
[112,null,null,null,null,null,null,null,null,null,65,23,71,150,153,85,67,8,65,22,131,149]
[113,null,null,null,null,null,null,null,null,null,64,74,67,89,69,27,122,9,66,23,132,150]
[114,null,null,null,null,null,null,null,null,null,103,25,72,77,10,20,81,10,67,24,133,151]
[115,null,null,null,null,null,null,null,null,null,67,82,10,118,83,84,109,11,69,25,134,152]
[116,null,null,null,null,null,null,null,null,null,137,15,44,51,82,141,43,12,70,26,135,153]
[117,null,null,null,null,null,null,null,null,null,102,87,104,147,35,149,61,13,71,27,136,154]
[118,null,null,null,null,null,null,null,null,null,60,88,122,115,74,89,49,14,72,155,137,155]
[119,null,null,null,null,null,null,null,null,null,null,null,null,null,19,133,87,15]
[120,null,null,null,null,null,null,null,null,null,null,null,null,null,90,11,31,16]
[121,null,null,null,null,null,null,null,null,null,null,null,null,null,62,10,142,17]
[122,null,null,null,null,null,null,null,null,null,null,null,null,null,87,19,101,18]
[123,null,null,null,null,null,null,null,null,null,null,null,null,null,6,122,126,19]
[124,null,null,null,null,null,null,null,null,null,null,null,null,null,7,152,78,20]
[125,null,null,null,null,null,null,null,null,null,null,null,null,null,136,147,40,21]
[126,null,null,null,null,null,null,null,null,null,null,null,null,null,32,64,75,22]
[127,null,null,null,null,null,null,null,null,null,null,null,null,null,70,21,30,23]
[128,null,null,null,null,null,null,null,null,null,null,null,null,null,140,123,36,24]
[129,null,null,null,null,null,null,null,null,null,null,null,null,null,150,79,59,25]
[130,null,null,null,null,null,null,null,null,null,null,null,null,null,112,77,10,26]
[131,null,null,null,null,null,null,null,null,null,null,null,null,null,100,134,77,27]
[132,null,null,null,null,null,null,null,null,null,null,null,null,null,126,80,151,155]
[133,null,null,null,null,null,null,null,null,null,null,null,null,null,64,null,131]
[134,null,null,null,null,null,null,null,null,null,null,null,null,null,135,null,96]
[135,null,null,null,null,null,null,null,null,null,null,null,null,null,107,null,34]
[136,null,null,null,null,null,null,null,null,null,null,null,null,null,77,null,148]
[137,null,null,null,null,null,null,null,null,null,null,null,null,null,36,null,102]
[138,null,null,null,null,null,null,null,null,null,null,null,null,null,139,null,86]
[139,null,null,null,null,null,null,null,null,null,null,null,null,null,117,null,50]
[140,null,null,null,null,null,null,null,null,null,null,null,null,null,147,null,65]
[null,null,null,null,null,null,null,null,null,null,null,null,null,null,27,null,152]
[null,null,null,null,null,null,null,null,null,null,null,null,null,null,26,null,25]
[]
[]
[]
[null,null,null,null,null,null,null,null,null,"A","B","C","D","E","SG"]
[null,null,null,null,null,null,null,null,null,"Numero","Numero","Numero","Numero","Numero","Numéro"]
[null,null,null,null,null,null,null,null,null,65,138,67,35,15,111]
[null,null,null,null,null,null,null,null,null,139,72,34,5,26,85]
[null,null,null,null,null,null,null,null,null,71,140,129,25,58,71]
[null,null,null,null,null,null,null,null,null,114,33,105,101,132,135]
[null,null,null,null,null,null,null,null,null,145,44,27,136,42,140]
[null,null,null,null,null,null,null,null,null,7,66,135,69,64,58]
[null,null,null,null,null,null,null,null,null,97,3,13,20,6,51]
[null,null,null,null,null,null,null,null,null,17,128,94,9,96,25]
[null,null,null,null,null,null,null,null,null,11,8,16,153,31,154]
[null,null,null,null,null,null,null,null,null,82,23,90,117,137,24]
[null,null,null,null,null,null,null,null,null,103,83,147,30,21,105]
[null,null,null,null,null,null,null,null,null,127,12,56,52,130,141]
[null,null,null,null,null,null,null,null,null,54,134,100,41,155,42]
[null,null,null,null,null,null,null,null,null,109,61,84,74,154,116]
[null,null,null,null,null,null,null,null,null,77,146,51,148,113,14]
[null,null,null,null,null,null,null,null,null,122,18,141,63,75,87]
[null,null,null,null,null,null,null,null,null,150,151,111,95,81,146]
[null,null,null,null,null,null,null,null,null,22,50,4,107,70,108]
[null,null,null,null,null,null,null,null,null,133,99,116,85,126,72]
[null,null,null,null,null,null,null,null,null,43,39,19,14,118,109]
[null,null,null,null,null,null,null,null,null,87,78,40,142,10,57]
[null,null,null,null,null,null,null,null,null,59,110,45,125,36,48]
[null,null,null,null,null,null,null,null,null,32,55,79,47,86,107]
[null,null,null,null,null,null,null,null,null,92,104,89,131,53,16]
[null,null,null,null,null,null,null,null,null,49,115,73,91,48,79]
[null,null,null,null,null,null,null,null,null,119,93,62,80,149,62]
[null,null,null,null,null,null,null,null,null,60,123,152,112,102,7]
[null,null,null,null,null,null,null,null,null,37,88,24,57,108,78]
[null,null,null,null,null,null,null,null,null,null,null,null,null,null,54]
[null,null,null,null,null,null,null,null,null,null,null,null,null,null,70]
[null,null,null,null,null,null,null,null,null,null,null,null,null,null,13]
[null,null,null,null,null,null,null,null,null,null,null,null,null,null,44]
[null,null,null,null,null,null,null,null,null,null,null,null,null,null,138]
[null,null,null,null,null,null,null,null,null,null,null,null,null,null,113]
[null,null,null,null,null,null,null,null,null,null,null,null,null,null,50]
[null,null,null,null,null,null,null,null,null,null,null,null,null,null,77]
[null,null,null,null,null,null,null,null,null,null,null,null,null,null,15]
[null,null,null,null,null,null,null,null,null,null,null,null,null,null,133]
[null,null,null,null,null,null,null,null,null,null,null,null,null,null,22]
[null,null,null,null,null,null,null,null,null,null,null,null,null,null,53]
[null,null,null,null,null,null,null,null,null,null,null,null,null,null,84]
[null,null,null,null,null,null,null,null,null,null,null,null,null,null,59]
[null,null,null,null,null,null,null,null,null,null,null,null,null,null,92]
[null,null,null,null,null,null,null,null,null,null,null,null,null,null,131]
[null,null,null,null,null,null,null,null,null,null,null,null,null,null,9]
[null,null,null,null,null,null,null,null,null,null,"Zone-Gauche","Zone-Droite","Zone-Haute","Zone-Basse",118]
[null,null,null,null,null,null,null,null,null,null,122,73,3,16,129]
[null,null,null,null,null,null,null,null,null,null,123,74,4,17,11]
[null,null,null,null,null,null,null,null,null,null,125,75,5,18,12]
[null,null,null,null,null,null,null,null,null,null,126,77,6,19,30]
[null,null,null,null,null,null,null,null,null,null,127,78,7,20,122]
[null,null,null,null,null,null,null,null,null,null,128,79,8,21,103]
[null,null,null,null,null,null,null,null,null,null,129,80,9,22,56]
[null,null,null,null,null,null,null,null,null,null,130,81,10,23,96]
[null,null,null,null,null,null,null,null,null,null,131,82,11,24,26]
[null,null,null,null,null,null,null,null,null,null,132,83,12,25,117]
[null,null,null,null,null,null,null,null,null,null,133,84,13,26,31]
[null,null,null,null,null,null,null,null,null,null,134,85,14,27,23]
[null,null,null,null,null,null,null,null,null,null,135,86,15,45,18]
[null,null,null,null,null,null,null,null,null,null,136,87,30,47,88]
[null,null,null,null,null,null,null,null,null,null,137,88,31,48,74]
[null,null,null,null,null,null,null,null,null,null,138,89,32,49,47]
[null,null,null,null,null,null,null,null,null,null,139,30,33,50,95]
[null,null,null,null,null,null,null,null,null,null,140,31,34,51,34]
[null,null,null,null,null,null,null,null,null,null,141,32,35,52,123]
[null,null,null,null,null,null,null,null,null,null,142,33,36,53,147]
[null,null,null,null,null,null,null,null,null,null,145,34,37,54,65]
[null,null,null,null,null,null,null,null,null,null,146,35,39,55,150]
[null,null,null,null,null,null,null,null,null,null,147,36,40,56,17]
[null,null,null,null,null,null,null,null,null,null,148,37,41,57,86]
[null,null,null,null,null,null,null,null,null,null,149,39,42,58,91]
[null,null,null,null,null,null,null,null,null,null,150,40,43,59,81]
[null,null,null,null,null,null,null,null,null,null,151,41,44,75,49]
[null,null,null,null,null,null,null,null,null,null,152,42,60,77,32]
[null,null,null,null,null,null,null,null,null,null,153,43,61,78,5]
[null,null,null,null,null,null,null,null,null,null,154,44,62,79,119]
[null,null,null,null,null,null,null,null,null,null,90,45,63,80,149]
[null,null,null,null,null,null,null,null,null,null,91,47,64,81,20]
[null,null,null,null,null,null,null,null,null,null,92,48,65,82,41]
[null,null,null,null,null,null,null,null,null,null,93,49,66,83,100]
[null,null,null,null,null,null,null,null,null,null,94,50,67,84,97]
[null,null,null,null,null,null,null,null,null,null,95,51,69,85,27]
[null,null,null,null,null,null,null,null,null,null,96,52,70,86,4]
[null,null,null,null,null,null,null,null,null,null,97,53,71,87,36]
[null,null,null,null,null,null,null,null,null,null,99,54,72,88,83]
[null,null,null,null,null,null,null,null,null,null,100,55,73,89,148]
[null,null,null,null,null,null,null,null,null,null,101,56,74,105,45]
[null,null,null,null,null,null,null,null,null,null,102,57,90,107,102]
[null,null,null,null,null,null,null,null,null,null,103,58,91,108,114]
[null,null,null,null,null,null,null,null,null,null,104,59,92,109,126]
[null,null,null,null,null,null,null,null,null,null,105,3,93,110,101]
[null,null,null,null,null,null,null,null,null,null,107,4,94,111,10]
[null,null,null,null,null,null,null,null,null,null,108,5,95,112,110]
[null,null,null,null,null,null,null,null,null,null,109,6,96,113,128]
[null,null,null,null,null,null,null,null,null,null,110,7,97,114,67]
[null,null,null,null,null,null,null,null,null,null,111,8,99,115,33]
[null,null,null,null,null,null,null,null,null,null,112,9,100,116,90]
[null,null,null,null,null,null,null,null,null,null,113,10,101,117,37]
[null,null,null,null,null,null,null,null,null,null,114,11,102,118,75]
[null,null,null,null,null,null,null,null,null,null,115,12,103,119,137]
[null,null,null,null,null,null,null,null,null,null,116,13,104,138,82]
[null,null,null,null,null,null,null,null,null,null,117,14,122,139,55]
[null,null,null,null,null,null,null,null,null,null,118,15,123,140,130]
[null,null,null,null,null,null,null,null,null,null,119,16,125,141,89]
[null,null,null,null,null,null,null,null,null,null,60,17,126,142,152]
[null,null,null,null,null,null,null,null,null,null,61,18,127,145,115]
[null,null,null,null,null,null,null,null,null,null,62,19,128,146,145]
[null,null,null,null,null,null,null,null,null,null,63,20,129,147,60]
[null,null,null,null,null,null,null,null,null,null,64,21,130,148,127]
[null,null,null,null,null,null,null,null,null,null,65,22,131,149,142]
[null,null,null,null,null,null,null,null,null,null,66,23,132,150,43]
[null,null,null,null,null,null,null,null,null,null,67,24,133,151,3]
[null,null,null,null,null,null,null,null,null,null,69,25,134,152,21]
[null,null,null,null,null,null,null,null,null,null,70,26,135,153,151]
[null,null,null,null,null,null,null,null,null,null,71,27,136,154,139]
[null,null,null,null,null,null,null,null,null,null,72,155,137,155,64]
[null,null,null,null,null,null,null,null,null,null,null,null,null,null,63]
[null,null,null,null,null,null,null,null,null,null,null,null,null,null,66]
[null,null,null,null,null,null,null,null,null,null,null,null,null,null,73]
[null,null,null,null,null,null,null,null,null,null,null,null,null,null,136]
[null,null,null,null,null,null,null,null,null,null,null,null,null,null,104]
[null,null,null,null,null,null,null,null,null,null,null,null,null,null,52]
[null,null,null,null,null,null,null,null,null,null,null,null,null,null,94]
[null,null,null,null,null,null,null,null,null,null,null,null,null,null,99]
[null,null,null,null,null,null,null,null,null,null,null,null,null,null,19]
[null,null,null,null,null,null,null,null,null,null,null,null,null,null,134]
[null,null,null,null,null,null,null,null,null,null,null,null,null,null,112]
[null,null,null,null,null,null,null,null,null,null,null,null,null,null,125]
[null,null,null,null,null,null,null,null,null,null,null,null,null,null,6]
[null,null,null,null,null,null,null,null,null,null,null,null,null,null,61]
[null,null,null,null,null,null,null,null,null,null,null,null,null,null,69]
[null,null,null,null,null,null,null,null,null,null,null,null,null,null,39]
[null,null,null,null,null,null,null,null,null,null,null,null,null,null,132]
[null,null,null,null,null,null,null,null,null,null,null,null,null,null,93]
[null,null,null,null,null,null,null,null,null,null,null,null,null,null,8]
[null,null,null,null,null,null,null,null,null,null,null,null,null,null,80]
[null,null,null,null,null,null,null,null,null,null,null,null,null,null,40]
[null,null,null,null,null,null,null,null,null,null,null,null,null,null,153]
[null,null,null,null,null,null,null,null,null,null,null,null,null,null,155]
[null,null,null,null,null,null,null,null,null,null,null,null,null,null,35]

{"sheet":"Affichage","index":1,"n_rows":154,"n_cols":36,"rows_kept":154,"cut":false,"hidden":true,"merged":[[1,9,1,12]]}
[null,"DÉPARTEMENT",{"$f":"Tableau_de_bord!H13","v":"GCCD"},null,null,null,"Répartition des étudiants dans la salle des contrôles"]
[null,"Semestre : ",{"$f":"Tableau_de_bord!H15","v":"S1"},null,"Date :",null,{"$f":"Tableau_de_bord!H21","v":"2022-06-17"},"Épreuve :",null,{"$f":"Tableau_de_bord!H19","v":"Mathématiques"}]
[]
[null,"Nom","Prénom",null,"Place N°",null,"Nom","Prénom",null,"Place N°",null,"Nom","Prénom",null,"Place N°",null,null,null,null,null,null,null,null,null,null,null,null,null,null,null,null,null,"146 places au total"]
[null,"ABLIN","Hugo","J1",60,null,"LE GOUDIVEZE","Jean","N1",5,null,null,null,null,null,null,null,null,null,null,null,null,null,null,null,null,null,null,null,null,null,null,"Rechercher",45,"qui est ","S"]
[null,"ALLAIS","Tanguy","N2",142,null,"LE GUILLY","Mathilde","L1",19,null,null,null,null,null,null,null,null,null,null,null,null,null,null,null,null,null,null,null,null,null,null,"Remplacer par",27,"qui est ","X"]
[null,"ALLARD","Baptiste","L2",105,null,"LE JEUNE","Titouan","N1",91,null,null,null,null,null,null,122,"S",null,90,"S",null,60,"S",null,30,"S",null,3,"S",null,null,null,"puis remplir le plan de la salle"]
[null,"ANGIBAUD","Armand","L1",51,null,"LE LURON","Sacha","N1",80,null,null,null,null,null,null,123,"S",null,91,"S",null,61,"S",null,31,"X",null,4,"S"]
[null,"AUBRY","Marius","J2",145,null,"LE NORMAND","Amandine","J1",54,null,null,null,null,null,null,null,null,null,92,"X",null,62,"S",null,32,"S",null,5,"S",null,null,"Ensuite on aura :",{"$f":"AH5","v":45},"en ","X"]
[null,"BA","Ady","N2",85,null,"LE SAUX","Jocelyn","N1",117,null,null,null,null,null,null,125,"X",null,93,"S",null,63,"S",null,33,"S",null,6,"X",null,null,null,{"$f":"AH6","v":27},"en ","S"]
[null,"BELHOMME","Louen","L2",4,null,"LEBLANC","Dylan","L1",135,null,null,null,null,null,null,126,"X",null,94,"S",null,64,"X",null,34,"S",null,7,"S"]
[null,"BESNARD","Achille","K1",12,null,"LEMÉE","Kévin","K1",146,null,null,null,null,null,null,127,"S",null,95,"S",null,65,"S",null,35,"X",null,8,"S"]
[null,"BOISNEAU","Elisa","J1",37,null,"LEVEL","Thalys","N2",9,null,null,null,null,null,null,128,"S",null,96,"X",null,66,"S",null,36,"X"]
[null,"BOIZARD","Maxime","J2",119,null,"LIARD","Mathéo","L1",147,null,null,null,null,null,null,129,"X",null,97,"S",null,67,"S",null,37,"S"]
[null,"BONHOMME","Aymeric","N1",95,null,"LIVET","Anaïs","L1",90,null,null,null,null,null,null,130,"X",null,98,"X",null,68,"X",null,38,"X"]
[null,"BOSSARD","Canelle","K1",123,null,"LOIRAT","Pauline","K2",3,null,null,null,null,null,null,131,"X",null,99,"S",null,69,"S",null,39,"S",null,9,"S"]
[null,"BOUCHERIE","Marion","L2",84,null,"LUCAS","Hugo","J2",103,null,null,null,null,null,null,132,"X",null,100,"X",null,70,"X",null,40,"S",null,10,"X"]
[null,"BRIENT","Mathis","J2",49,null,"MACE","Charly","J2",32,null,null,null,null,null,null,133,"S",null,101,"S",null,71,"S",null,41,"S",null,11,"S"]
[null,"BRISARD","Alexandre","K2",134,null,"MAGNIER","Paul","J1",139,null,null,null,null,null,null,134,"S",null,102,"X",null,72,"S",null,42,"X",null,12,"S"]
[null,"CHANNAROND","Théo","N2",148,null,"MAHÉ","Félicie","K1",128,null,null,null,null,null,null,135,"S",null,103,"S",null,73,"X",null,43,"X",null,13,"X"]
[null,"CHARPENTIER","Romain","K2",8,null,"MALMOUCHE","Maëlle","K2",33,null,null,null,null,null,null,136,"X",null,104,"X",null,74,"S",null,44,"S",null,14,"S"]
[null,"CHESNEAU","Angélina","N1",41,null,"MARICHAL","Natnaël","L1",34,null,null,null,null,null,null,137,"X",null,105,"S",null,75,"X",null,45,"S",null,15,"X"]
[null,"CIVEL","Lucas","K1",138,null,"MARY","Pierre","K1",18,null,null,null,null,null,null,138,"S",null,106,"X",null,76,"X",null,46,"X",null,16,"S"]
[null,"CLENET","Valentin","J1",22,null,"MASSE","Louis","J1",7,null,null,null,null,null,null,139,"S"]
[null,"CLERC","Théo","L1",16,null,"MENON","Hugo","J2",17,null,null,null,null,null,null,140,"S",null,107,"S",null,77,"S",null,47,"X",null,17,"S"]
[null,"COCHET","Ewen","J2",109,null,"MEREL","Bastien","K2",61,null,null,null,null,null,null,141,"S",null,108,"X",null,78,"S",null,48,"X",null,18,"S"]
[null,"CORGNIARD","Ewen","K2",140,null,"MICHINOT","Matthieu","L2",94,null,null,null,null,null,null,142,"S",null,109,"S",null,79,"S",null,49,"S",null,19,"S"]
[null,"DANG XUAN","Antoine","K2",83,null,"MONGAULT","Lucie","L1",79,null,null,null,null,null,null,null,null,null,110,"S",null,80,"S",null,50,"S",null,20,"X"]
[null,"DELMAS","Ophélie","L1",45,null,"NOEL","Lilian","J2",97,null,null,null,null,null,null,null,null,null,null,null,null,81,"X",null,51,"S",null,21,"X"]
[null,"DUGUAY","Maréva","J1",11,null,"ORAIN","Sylvain","N2",57,null,null,null,null,null,null,145,"S",null,111,"S",null,82,"S",null,52,"X",null,22,"S"]
[null,"DUWATTEZ","Maëlle","J1",87,null,"OREGGIA","Florian","K1",23,null,null,null,null,null,null,146,"S",null,112,"S",null,83,"S",null,53,"X",null,23,"S"]
[null,"FILY--KELLER","Niels","K1",72,null,"OUISSE","Lucas","N1",153,null,null,null,null,null,null,147,"S",null,113,"X",null,84,"S",null,54,"S",null,24,"X"]
[null,"FOUILLEUL","Emmy","L1",62,null,"PAROIS","Romain","J1",71,null,null,null,null,null,null,148,"S",null,114,"S",null,85,"S",null,55,"S",null,25,"S"]
[null,"GARNIER","Valentin","J2",77,null,"PÉCHEREAU","Marguerite","K1",151,null,null,null,null,null,null,149,"X",null,115,"S",null,86,"X",null,56,"X",null,26,"X",null,null,"Places lbres",125]
[null,"GOUARD","Guillaume","N2",69,null,"PICAULT","Alexandre","N1",63,null,null,null,null,null,null,150,"S",null,116,"S",null,87,"S",null,57,"S",null,27,"S",null,null,null,126]
[null,"GOUBAUD","Giovanni","K2",78,null,"PINEAU","Gatien","J2",114,null,null,null,null,null,null,151,"S",null,117,"S",null,88,"S",null,58,"X",null,null,null,null,null,null,129]
[null,"GUEDAOURIA","Ilias","K2",50,null,"PLESSY","Armand","J1",122,null,null,null,null,null,null,152,"X",null,118,"X",null,89,"X",null,59,"X",null,null,null,null,null,null,130]
[null,"GUILLON","Enzo","N2",30,null,"RAKOTONDRAZAKA","Henintsoa","K2",93,null,null,null,null,null,null,153,"S",null,119,"S",null,null,null,null,null,null,null,155,"X",null,null,null,131]
[null,"GUINOISEAU","Théo","L2",111,null,"RESPONDEK","Alexis","L2",116,null,null,null,null,null,null,154,"X",null,null,null,null,null,null,null,null,null,null,null,null,null,null,null,132]
[null,"HABAMENSHI","Lambert","L1",27,null,"SCHUTZ","Malo","N2",74,null,null,null,null,null,null,null,null,null,null,null,null,null,null,null,null,null,null,null,null,null,null,null,136]
[null,"HAMEL","Jean-Guillaume","K2",99,null,"SÉROT","Lucas","K2",39,null,null,null,null,null,null,null,null,null,null,null,null,null,null,null,null,null,null,null,null,null,null,null,137]
[null,"HAMON","Margaux","L1",40,null,"SI AHMED","Lounes","N2",25,null,null,null,null,null,null,null,null,null,"    ",null,null,null,null,null,null,null,null,null,null,null,null,null,149]
[null,"HENAFF","Romain","K2",44,null,"TARAVELLA","Mathieu","K1",55,null,null,null,null,null,null,"LEGENDE",null,null,null,null,null,null,null,null,null,null,null,"Total",null,null,null,null,152]
[null,"HERAULT","Louison","N1",107,null,"THEAUD","Noé","J2",150,null,null,null,null,null,null,null,"Zone A",null,null,null,null,null,null,null,null,null,null,{"$f":"Tableau_de_bord!Z13","v":25},null,null,null,null,154]
[null,"HERVOUET","Pierre","K1",110,null,"THOMAS","Hugo","J1",127,null,null,null,null,null,null,null,"Zone B",null,null,null,null,null,null,null,null,null,null,{"$f":"Tableau_de_bord!Z16","v":27},null,null,null,null,92]
[null,"HIRON","Cloé","J1",82,null,"VIEAU","Nathan","L2",141,null,null,null,null,null,null,null,"Zone C",null,null,null,null,null,null,null,null,null,null,{"$f":"Tableau_de_bord!Z19","v":20},null,null,null,null,96]
[null,"HUNAULT","Louis","J2",65,null,"VILAIN","Zoé","N2",101,null,null,null,null,null,null,null,"Zone D",null,null,null,null,null,null,null,null,null,null,{"$f":"Tableau_de_bord!Z22","v":21},null,null,null,null,98]
[null,"ISVELIN","Niels","K2",66,null,null,null,null,null,null,null,null,null,null,null,null,"Zone E",null,null,null,null,null,null,null,null,null,null,{"$f":"Tableau_de_bord!Z25","v":0},null,null,null,null,100]
[null,"JOVANOVIC","Andrija","K1",88,null,null,null,null,null,null,null,null,null,null,null,"N°","Circulation des surveillants / Couloir d'évacuation",null,null,null,null,null,null,null,null,null,null,null,null,null,null,null,102]
[null,"LAUDREN","Paulin","N2",14,null,null,null,null,null,null,null,null,null,null,null,"S","Sujet à distribuer à cet emplacement",null,null,null,null,null,null,null,null,null,null,{"$f":"W53","v":93},null,null,null,null,104]
[null,"LE BORGNE","Titouan","L2",67,null,null,null,null,null,null,null,null,null,null,null,"X","Place libre",null,null,null,null,null,null,null,null,null,null,{"$f":"W54","v":53},null,null,null,null,106]
[null,"LE CALLET","Gwenaëlle","N1",112,null,null,null,null,null,null,null,null,null,null,null,null,null,null,null,null,null,null,null,null,null,null,null,null,null,null,null,null,108]
[null,"LE GALL","Simon","J1",133,null,null,null,null,null,null,null,null,null,null,null,"Nombre d'étudiants :",null,null,null,null,null,{"$f":"140-COUNTBLANK(E5:E54)-COUNTBLANK(J5:J54)-COUNTBLANK(O5:O44)","v":93},null,null,null,null,null,null,null,null,null,null,113]
[null,"LE GLOANNEC","Brendan","K1",115,null,null,null,null,null,null,null,null,null,null,null,"Total places libres :",null,null,null,null,null,{"$f":"COUNTIF(R7:R39,\"X\")+COUNTIF(U7:U39,\"X\")+COUNTIF(X7:X39,\"X\")+COUNTIF(AA7:AA39,\"X\")+COUNTIF(AD7:AD39,\"X\")","v":53},null,null,null,null,null,null,null,null,null,null,118]
[null,null,null,null,null,null,null,null,null,null,null,null,null,null,null,null,null,null,null,null,null,null,null,null,null,null,null,null,null,null,null,null,null,64]
[null,null,null,null,null,null,null,null,null,null,null,null,null,null,null,null,null,null,null,null,null,null,null,null,null,null,null,null,null,null,null,null,null,68]
[null,null,null,null,null,null,null,null,null,null,null,null,null,null,null,null,null,null,null,null,null,null,null,null,null,null,null,null,null,null,null,null,null,70]
[null,null,null,null,null,null,null,null,null,null,null,null,null,null,null,null,null,null,null,null,null,null,null,null,null,null,null,null,null,null,null,null,null,73]
[null,null,null,null,null,null,null,null,null,null,null,null,null,null,null,null,null,null,null,null,null,null,null,null,null,null,null,null,null,null,null,null,null,75]
[null,null,null,null,null,null,null,null,null,null,null,null,null,null,null,null,null,null,null,null,null,null,null,null,null,null,null,null,null,null,null,null,null,76]
[null,null,null,null,null,null,null,null,null,null,null,null,null,null,null,null,null,null,null,null,null,null,null,null,null,null,null,null,null,null,null,null,null,81]
[null,null,null,null,null,null,null,null,null,null,null,null,null,null,null,null,null,null,null,null,null,null,null,null,null,null,null,null,null,null,null,null,null,86]
[null,null,null,null,null,null,null,null,null,null,null,null,null,null,null,null,null,null,null,null,null,null,null,null,null,null,null,null,null,null,null,null,null,89]
[null,null,null,null,null,null,null,null,null,null,null,null,null,null,null,null,null,null,null,null,null,null,null,null,null,null,null,null,null,null,null,null,null,31]
[null,null,null,null,null,null,null,null,null,null,null,null,null,null,null,null,null,null,null,null,null,null,null,null,null,null,null,null,null,null,null,null,null,35]
[null,null,null,null,null,null,null,null,null,null,null,null,null,null,null,null,null,null,null,null,null,null,null,null,null,null,null,null,null,null,null,null,null,36]
[null,null,null,null,null,null,null,null,null,null,null,null,null,null,null,null,null,null,null,null,null,null,null,null,null,null,null,null,null,null,null,null,null,38]
[null,null,null,null,null,null,null,null,null,null,null,null,null,null,null,null,null,null,null,null,null,null,null,null,null,null,null,null,null,null,null,null,null,42]
[null,null,null,null,null,null,null,null,null,null,null,null,null,null,null,null,null,null,null,null,null,null,null,null,null,null,null,null,null,null,null,null,null,43]
[null,null,null,null,null,null,null,null,null,null,null,null,null,null,null,null,null,null,null,null,null,null,null,null,null,null,null,null,null,null,null,null,null,46]
[null,null,null,null,null,null,null,null,null,null,null,null,null,null,null,null,null,null,null,null,null,null,null,null,null,null,null,null,null,null,null,null,null,47]
[null,null,null,null,null,null,null,null,null,null,null,null,null,null,null,null,null,null,null,null,null,null,null,null,null,null,null,null,null,null,null,null,null,48]
[null,null,null,null,null,null,null,null,null,null,null,null,null,null,null,null,null,null,null,null,null,null,null,null,null,null,null,null,null,null,null,null,null,52]
[null,null,null,null,null,null,null,null,null,null,null,null,null,null,null,null,null,null,null,null,null,null,null,null,null,null,null,null,null,null,null,null,null,53]
[null,null,null,null,null,null,null,null,null,null,null,null,null,null,null,null,null,null,null,null,null,null,null,null,null,null,null,null,null,null,null,null,null,56]
[null,null,null,null,null,null,null,null,null,null,null,null,null,null,null,null,null,null,null,null,null,null,null,null,null,null,null,null,null,null,null,null,null,58]
[null,null,null,null,null,null,null,null,null,null,null,null,null,null,null,null,null,null,null,null,null,null,null,null,null,null,null,null,null,null,null,null,null,59]
[null,null,null,null,null,null,null,null,null,null,null,null,null,null,null,null,null,null,null,null,null,null,null,null,null,null,null,null,null,null,null,null,null,6]
[null,null,null,null,null,null,null,null,null,null,null,null,null,null,null,null,null,null,null,null,null,null,null,null,null,null,null,null,null,null,null,null,null,10]
[null,null,null,null,null,null,null,null,null,null,null,null,null,null,null,null,null,null,null,null,null,null,null,null,null,null,null,null,null,null,null,null,null,13]
[null,null,null,null,null,null,null,null,null,null,null,null,null,null,null,null,null,null,null,null,null,null,null,null,null,null,null,null,null,null,null,null,null,15]
[null,null,null,null,null,null,null,null,null,null,null,null,null,null,null,null,null,null,null,null,null,null,null,null,null,null,null,null,null,null,null,null,null,20]
[null,null,null,null,null,null,null,null,null,null,null,null,null,null,null,null,null,null,null,null,null,null,null,null,null,null,null,null,null,null,null,null,null,21]
[null,null,null,null,null,null,null,null,null,null,null,null,null,null,null,null,null,null,null,null,null,null,null,null,null,null,null,null,null,null,null,null,null,24]
[null,null,null,null,null,null,null,null,null,null,null,null,null,null,null,null,null,null,null,null,null,null,null,null,null,null,null,null,null,null,null,null,null,26]
[null,null,null,null,null,null,null,null,null,null,null,null,null,null,null,null,null,null,null,null,null,null,null,null,null,null,null,null,null,null,null,null,null,155]
[null,null,null,null,null,null,null,null,null,null,null,null,null,null,null,null,null,null,null,null,null,null,null,null,null,null,null,null,null,null,null,null,null,66]
[null,null,null,null,null,null,null,null,null,null,null,null,null,null,null,null,null,null,null,null,null,null,null,null,null,null,null,null,null,null,null,null,null,67]
[null,null,null,null,null,null,null,null,null,null,null,null,null,null,null,null,null,null,null,null,null,null,null,null,null,null,null,null,null,null,null,null,null,68]
[null,null,null,null,null,null,null,null,null,null,null,null,null,null,null,null,null,null,null,null,null,null,null,null,null,null,null,null,null,null,null,null,null,69]
[null,null,null,null,null,null,null,null,null,null,null,null,null,null,null,null,null,null,null,null,null,null,null,null,null,null,null,null,null,null,null,null,null,70]
[null,null,null,null,null,null,null,null,null,null,null,null,null,null,null,null,null,null,null,null,null,null,null,null,null,null,null,null,null,null,null,null,null,72]
[null,null,null,null,null,null,null,null,null,null,null,null,null,null,null,null,null,null,null,null,null,null,null,null,null,null,null,null,null,null,null,null,null,73]
[null,null,null,null,null,null,null,null,null,null,null,null,null,null,null,null,null,null,null,null,null,null,null,null,null,null,null,null,null,null,null,null,null,74]
[null,null,null,null,null,null,null,null,null,null,null,null,null,null,null,null,null,null,null,null,null,null,null,null,null,null,null,null,null,null,null,null,null,75]
[null,null,null,null,null,null,null,null,null,null,null,null,null,null,null,null,null,null,null,null,null,null,null,null,null,null,null,null,null,null,null,null,null,76]
[null,null,null,null,null,null,null,null,null,null,null,null,null,null,null,null,null,null,null,null,null,null,null,null,null,null,null,null,null,null,null,null,null,78]
[null,null,null,null,null,null,null,null,null,null,null,null,null,null,null,null,null,null,null,null,null,null,null,null,null,null,null,null,null,null,null,null,null,79]
[null,null,null,null,null,null,null,null,null,null,null,null,null,null,null,null,null,null,null,null,null,null,null,null,null,null,null,null,null,null,null,null,null,80]
[null,null,null,null,null,null,null,null,null,null,null,null,null,null,null,null,null,null,null,null,null,null,null,null,null,null,null,null,null,null,null,null,null,81]
[null,null,null,null,null,null,null,null,null,null,null,null,null,null,null,null,null,null,null,null,null,null,null,null,null,null,null,null,null,null,null,null,null,83]
[null,null,null,null,null,null,null,null,null,null,null,null,null,null,null,null,null,null,null,null,null,null,null,null,null,null,null,null,null,null,null,null,null,84]
[null,null,null,null,null,null,null,null,null,null,null,null,null,null,null,null,null,null,null,null,null,null,null,null,null,null,null,null,null,null,null,null,null,85]
[null,null,null,null,null,null,null,null,null,null,null,null,null,null,null,null,null,null,null,null,null,null,null,null,null,null,null,null,null,null,null,null,null,86]
[null,null,null,null,null,null,null,null,null,null,null,null,null,null,null,null,null,null,null,null,null,null,null,null,null,null,null,null,null,null,null,null,null,87]
[null,null,null,null,null,null,null,null,null,null,null,null,null,null,null,null,null,null,null,null,null,null,null,null,null,null,null,null,null,null,null,null,null,88]
[null,null,null,null,null,null,null,null,null,null,null,null,null,null,null,null,null,null,null,null,null,null,null,null,null,null,null,null,null,null,null,null,null,89]
[null,null,null,null,null,null,null,null,null,null,null,null,null,null,null,null,null,null,null,null,null,null,null,null,null,null,null,null,null,null,null,null,null,30]
[null,null,null,null,null,null,null,null,null,null,null,null,null,null,null,null,null,null,null,null,null,null,null,null,null,null,null,null,null,null,null,null,null,31]
[null,null,null,null,null,null,null,null,null,null,null,null,null,null,null,null,null,null,null,null,null,null,null,null,null,null,null,null,null,null,null,null,null,33]
[null,null,null,null,null,null,null,null,null,null,null,null,null,null,null,null,null,null,null,null,null,null,null,null,null,null,null,null,null,null,null,null,null,34]
[null,null,null,null,null,null,null,null,null,null,null,null,null,null,null,null,null,null,null,null,null,null,null,null,null,null,null,null,null,null,null,null,null,35]
[null,null,null,null,null,null,null,null,null,null,null,null,null,null,null,null,null,null,null,null,null,null,null,null,null,null,null,null,null,null,null,null,null,36]
[null,null,null,null,null,null,null,null,null,null,null,null,null,null,null,null,null,null,null,null,null,null,null,null,null,null,null,null,null,null,null,null,null,38]
[null,null,null,null,null,null,null,null,null,null,null,null,null,null,null,null,null,null,null,null,null,null,null,null,null,null,null,null,null,null,null,null,null,39]
[null,null,null,null,null,null,null,null,null,null,null,null,null,null,null,null,null,null,null,null,null,null,null,null,null,null,null,null,null,null,null,null,null,40]
[null,null,null,null,null,null,null,null,null,null,null,null,null,null,null,null,null,null,null,null,null,null,null,null,null,null,null,null,null,null,null,null,null,41]
[null,null,null,null,null,null,null,null,null,null,null,null,null,null,null,null,null,null,null,null,null,null,null,null,null,null,null,null,null,null,null,null,null,42]
[null,null,null,null,null,null,null,null,null,null,null,null,null,null,null,null,null,null,null,null,null,null,null,null,null,null,null,null,null,null,null,null,null,44]
[null,null,null,null,null,null,null,null,null,null,null,null,null,null,null,null,null,null,null,null,null,null,null,null,null,null,null,null,null,null,null,null,null,45]
[null,null,null,null,null,null,null,null,null,null,null,null,null,null,null,null,null,null,null,null,null,null,null,null,null,null,null,null,null,null,null,null,null,46]
[null,null,null,null,null,null,null,null,null,null,null,null,null,null,null,null,null,null,null,null,null,null,null,null,null,null,null,null,null,null,null,null,null,47]
[null,null,null,null,null,null,null,null,null,null,null,null,null,null,null,null,null,null,null,null,null,null,null,null,null,null,null,null,null,null,null,null,null,48]
[null,null,null,null,null,null,null,null,null,null,null,null,null,null,null,null,null,null,null,null,null,null,null,null,null,null,null,null,null,null,null,null,null,50]
[null,null,null,null,null,null,null,null,null,null,null,null,null,null,null,null,null,null,null,null,null,null,null,null,null,null,null,null,null,null,null,null,null,51]
[null,null,null,null,null,null,null,null,null,null,null,null,null,null,null,null,null,null,null,null,null,null,null,null,null,null,null,null,null,null,null,null,null,52]
[null,null,null,null,null,null,null,null,null,null,null,null,null,null,null,null,null,null,null,null,null,null,null,null,null,null,null,null,null,null,null,null,null,53]
[null,null,null,null,null,null,null,null,null,null,null,null,null,null,null,null,null,null,null,null,null,null,null,null,null,null,null,null,null,null,null,null,null,55]
[null,null,null,null,null,null,null,null,null,null,null,null,null,null,null,null,null,null,null,null,null,null,null,null,null,null,null,null,null,null,null,null,null,56]
[null,null,null,null,null,null,null,null,null,null,null,null,null,null,null,null,null,null,null,null,null,null,null,null,null,null,null,null,null,null,null,null,null,57]
[null,null,null,null,null,null,null,null,null,null,null,null,null,null,null,null,null,null,null,null,null,null,null,null,null,null,null,null,null,null,null,null,null,58]
[null,null,null,null,null,null,null,null,null,null,null,null,null,null,null,null,null,null,null,null,null,null,null,null,null,null,null,null,null,null,null,null,null,3]
[null,null,null,null,null,null,null,null,null,null,null,null,null,null,null,null,null,null,null,null,null,null,null,null,null,null,null,null,null,null,null,null,null,4]
[null,null,null,null,null,null,null,null,null,null,null,null,null,null,null,null,null,null,null,null,null,null,null,null,null,null,null,null,null,null,null,null,null,5]
[null,null,null,null,null,null,null,null,null,null,null,null,null,null,null,null,null,null,null,null,null,null,null,null,null,null,null,null,null,null,null,null,null,6]
[null,null,null,null,null,null,null,null,null,null,null,null,null,null,null,null,null,null,null,null,null,null,null,null,null,null,null,null,null,null,null,null,null,8]
[null,null,null,null,null,null,null,null,null,null,null,null,null,null,null,null,null,null,null,null,null,null,null,null,null,null,null,null,null,null,null,null,null,9]
[null,null,null,null,null,null,null,null,null,null,null,null,null,null,null,null,null,null,null,null,null,null,null,null,null,null,null,null,null,null,null,null,null,10]
[null,null,null,null,null,null,null,null,null,null,null,null,null,null,null,null,null,null,null,null,null,null,null,null,null,null,null,null,null,null,null,null,null,11]
[null,null,null,null,null,null,null,null,null,null,null,null,null,null,null,null,null,null,null,null,null,null,null,null,null,null,null,null,null,null,null,null,null,12]
[null,null,null,null,null,null,null,null,null,null,null,null,null,null,null,null,null,null,null,null,null,null,null,null,null,null,null,null,null,null,null,null,null,13]
[null,null,null,null,null,null,null,null,null,null,null,null,null,null,null,null,null,null,null,null,null,null,null,null,null,null,null,null,null,null,null,null,null,14]
[null,null,null,null,null,null,null,null,null,null,null,null,null,null,null,null,null,null,null,null,null,null,null,null,null,null,null,null,null,null,null,null,null,15]
[null,null,null,null,null,null,null,null,null,null,null,null,null,null,null,null,null,null,null,null,null,null,null,null,null,null,null,null,null,null,null,null,null,16]
[null,null,null,null,null,null,null,null,null,null,null,null,null,null,null,null,null,null,null,null,null,null,null,null,null,null,null,null,null,null,null,null,null,18]
[null,null,null,null,null,null,null,null,null,null,null,null,null,null,null,null,null,null,null,null,null,null,null,null,null,null,null,null,null,null,null,null,null,19]
[null,null,null,null,null,null,null,null,null,null,null,null,null,null,null,null,null,null,null,null,null,null,null,null,null,null,null,null,null,null,null,null,null,20]
[null,null,null,null,null,null,null,null,null,null,null,null,null,null,null,null,null,null,null,null,null,null,null,null,null,null,null,null,null,null,null,null,null,21]
[null,null,null,null,null,null,null,null,null,null,null,null,null,null,null,null,null,null,null,null,null,null,null,null,null,null,null,null,null,null,null,null,null,23]
[null,null,null,null,null,null,null,null,null,null,null,null,null,null,null,null,null,null,null,null,null,null,null,null,null,null,null,null,null,null,null,null,null,24]
[null,null,null,null,null,null,null,null,null,null,null,null,null,null,null,null,null,null,null,null,null,null,null,null,null,null,null,null,null,null,null,null,null,25]
[null,null,null,null,null,null,null,null,null,null,null,null,null,null,null,null,null,null,null,null,null,null,null,null,null,null,null,null,null,null,null,null,null,26]
[null,null,null,null,null,null,null,null,null,null,null,null,null,null,null,null,null,null,null,null,null,null,null,null,null,null,null,null,null,null,null,null,null,27]
[null,null,null,null,null,null,null,null,null,null,null,null,null,null,null,null,null,null,null,null,null,null,null,null,null,null,null,null,null,null,null,null,null,155]

{"sheet":"Emargement","index":2,"n_rows":44,"n_cols":20,"rows_kept":44,"cut":false,"hidden":true,"merged":[[3,18,3,19],[4,18,4,19],[2,18,2,19],[1,18,1,19]]}
[]
[null,null,null,null,null,null,null,null,null,null,null,null,null,null,null,"Département :",null,null,{"$f":"Tableau_de_bord!H13","v":"GCCD"}]
[null,null,null,null,null,null,null,null,null,null,null,null,null,null,null,"Semestre :",null,null,{"$f":"Tableau_de_bord!H15","v":"S1"}]
[null,null,null,null,null,null,null,null,null,null,null,null,null,null,null,"Date :",null,null,{"$f":"Tableau_de_bord!H21","v":"2022-06-17"}]
[null,null,null,null,null,null,null,null,null,null,null,null,null,null,null,"Épreuve :",null,null,{"$f":"Tableau_de_bord!H19","v":"Mathématiques"}]
[]
[null,"N°","Nom","Prénom & Émargement",null,"N°","Nom","Prénom & Émargement",null,"N°","Nom","Prénom & Émargement",null,"N°","Nom","Prénom & Émargement",null,"N°","Nom","Prénom & Émargement"]
[null,122,"PLESSY","Armand",null,90,"LIVET","Anaïs",null,60,"ABLIN","Hugo",null,30,"GUILLON","Enzo",null,3,"LOIRAT","Pauline"]
[null,123,"BOSSARD","Canelle",null,91,"LE JEUNE","Titouan",null,61,"MEREL","Bastien",null,31,null,null,null,4,"BELHOMME","Louen"]
[null,null,null,null,null,92,null,null,null,62,"FOUILLEUL","Emmy",null,32,"MACE","Charly",null,5,"LE GOUDIVEZE","Jean"]
[null,125,null,null,null,93,"RAKOTONDRAZAKA","Henintsoa",null,63,"PICAULT","Alexandre",null,33,"MALMOUCHE","Maëlle",null,6]
[null,126,null,null,null,94,"MICHINOT","Matthieu",null,64,null,null,null,34,"MARICHAL","Natnaël",null,7,"MASSE","Louis"]
[null,127,"THOMAS","Hugo",null,95,"BONHOMME","Aymeric",null,65,"HUNAULT","Louis",null,35,null,null,null,8,"CHARPENTIER","Romain"]
[null,128,"MAHÉ","Félicie",null,96,null,null,null,66,"ISVELIN","Niels",null,36]
[null,129,null,null,null,97,"NOEL","Lilian",null,67,"LE BORGNE","Titouan",null,37,"BOISNEAU","Elisa"]
[null,130,null,null,null,98,null,null,null,68,null,null,null,38]
[null,131,null,null,null,99,"HAMEL","Jean-Guillaume",null,69,"GOUARD","Guillaume",null,39,"SÉROT","Lucas",null,9,"LEVEL","Thalys"]
[null,132,null,null,null,100,null,null,null,70,null,null,null,40,"HAMON","Margaux",null,10]
[null,133,"LE GALL","Simon",null,101,"VILAIN","Zoé",null,71,"PAROIS","Romain",null,41,"CHESNEAU","Angélina",null,11,"DUGUAY","Maréva"]
[null,134,"BRISARD","Alexandre",null,102,null,null,null,72,"FILY--KELLER","Niels",null,42,null,null,null,12,"BESNARD","Achille"]
[null,135,"LEBLANC","Dylan",null,103,"LUCAS","Hugo",null,73,null,null,null,43,null,null,null,13]
[null,136,null,null,null,104,null,null,null,74,"SCHUTZ","Malo",null,44,"HENAFF","Romain",null,14,"LAUDREN","Paulin"]
[null,137,null,null,null,105,"ALLARD","Baptiste",null,75,null,null,null,45,"DELMAS","Ophélie",null,15]
[null,138,"CIVEL","Lucas",null,106,null,null,null,76,null,null,null,46,null,null,null,16,"CLERC","Théo"]
[null,139,"MAGNIER","Paul"]
[null,140,"CORGNIARD","Ewen",null,107,"HERAULT","Louison",null,77,"GARNIER","Valentin",null,47,null,null,null,17,"MENON","Hugo"]
[null,141,"VIEAU","Nathan",null,108,null,null,null,78,"GOUBAUD","Giovanni",null,48,null,null,null,18,"MARY","Pierre"]
[null,142,"ALLAIS","Tanguy",null,109,"COCHET","Ewen",null,79,"MONGAULT","Lucie",null,49,"BRIENT","Mathis",null,19,"LE GUILLY","Mathilde"]
[null,null,null,null,null,110,"HERVOUET","Pierre",null,80,"LE LURON","Sacha",null,50,"GUEDAOURIA","Ilias",null,20]
[null,null,null,null,null,null,null,null,null,81,null,null,null,51,"ANGIBAUD","Armand",null,21]
[null,145,"AUBRY","Marius",null,111,"GUINOISEAU","Théo",null,82,"HIRON","Cloé",null,52,null,null,null,22,"CLENET","Valentin"]
[null,146,"LEMÉE","Kévin",null,112,"LE CALLET","Gwenaëlle",null,83,"DANG XUAN","Antoine",null,53,null,null,null,23,"OREGGIA","Florian"]
[null,147,"LIARD","Mathéo",null,113,null,null,null,84,"BOUCHERIE","Marion",null,54,"LE NORMAND","Amandine",null,24]
[null,148,"CHANNAROND","Théo",null,114,"PINEAU","Gatien",null,85,"BA","Ady",null,55,"TARAVELLA","Mathieu",null,25,"SI AHMED","Lounes"]
[null,149,null,null,null,115,"LE GLOANNEC","Brendan",null,86,null,null,null,56,null,null,null,26]
[null,150,"THEAUD","Noé",null,116,"RESPONDEK","Alexis",null,87,"DUWATTEZ","Maëlle",null,57,"ORAIN","Sylvain",null,27,"HABAMENSHI","Lambert"]
[null,151,"PÉCHEREAU","Marguerite",null,117,"LE SAUX","Jocelyn",null,88,"JOVANOVIC","Andrija",null,58]
[null,152,null,null,null,118,null,null,null,89,null,null,null,59]
[null,153,"OUISSE","Lucas",null,119,"BOIZARD","Maxime",null,null,null,null,null,null,null,null,null,155]
[null,154,null,null,null,null,null,null,null,null,null,null,null,null,null,null,null,null,null,"Total"]
[]
[null,null,{"$f":"33-COUNTBLANK(C8:C40)","v":19},null,null,null,{"$f":"33-COUNTBLANK(G8:G40)","v":20},null,0,null,21,null,0,null,16,null,0,null,17,{"$f":"SUM(C42:S42)","v":93}]
[]
[null,null,null,null,null,null,null,null,null,null,"Surveillants",null,null,null,null,null,null,null,"Total Absents"]

{"sheet":"Activation des macros","index":3,"n_rows":2,"n_cols":4,"rows_kept":2,"cut":false,"hidden":false,"merged":[]}
[]
[null,null,null,"Application RED : Activation des macros"]

{"sheet":"Lisez-moi","index":4,"n_rows":28,"n_cols":15,"rows_kept":28,"cut":false,"hidden":false,"merged":[]}
[]
[null,null,null,null,"Application RED : Mode d'emploi et informations complémentaires"]
[]
[]
[]
[]
[]
[]
[]
[]
[]
[]
[]
[]
[]
[]
[]
[null,null,null,null,null,null,null,null," "]
[]
[null,null,null,null,null,null,null,null,null,"      "]
[]
[]
[]
[]
[]
[]
[]
[null,null,null,null,"Prise en compte des groupes activée",null,null,null,null,null,null,null,null,null,"Prise en compte des groupes non activée"]

{"sheet":"Plan vierge de la salle","index":5,"n_rows":34,"n_cols":38,"rows_kept":34,"cut":false,"hidden":false,"merged":[]}
[]
[]
[null,null,null,null,null,null,"         "]
[]
[]
[]
[null,null,154,153,152,151,150,149,148,147,146,145,null,142,141,140,139,138,137,136,135,134,133,132,131,130,129,128,127,126,125,null,123,122,null,null,null,30]
[]
[]
[]
[]
[]
[null,null,119,118,117,116,115,114,113,112,111,null,110,109,108,107,null,106,105,104,103,102,101,100,99,98,97,96,95,94,93,92,91,90,null,null,null,30]
[]
[]
[]
[]
[]
[null,null,null,89,88,87,86,85,84,83,82,81,80,79,78,77,null,76,75,74,73,72,71,70,69,68,67,66,65,64,63,62,61,60,null,null,null,30]
[]
[]
[]
[]
[]
[null,null,null,59,58,57,56,55,54,53,52,51,50,49,48,47,null,46,45,44,43,42,41,40,39,38,37,36,35,34,33,32,31,30,null,null,null,30]
[]
[]
[]
[]
[null,null,155,null,null,27,26,25,24,23,22,21,20,19,18,17,null,16,15,14,13,12,11,10,9,null,null,8,7,6,5,4,3,null,null,null,null,26]
[]
[]
[]
[null,null,null,null,null,null,null,null,null,null,null,null,null,null,null,null,null,null,null,null,null,null,null,null,null,null,null,null,null,null,null,null,null,null,null,null,"Total : ",{"$f":"SUM(AL7:AL30)","v":146}]